[Event "26th Hit Open-A 2022"]
[Site "Nova Gorica"]
[Date "2022.09.18"]
[Round "4.1"]
[White "Royal, Shreyas"]
[Black "Sonis, Francesco"]
[Result "1/2-1/2"]
[ECO "E15"]
[WhiteElo "2412"]
[BlackElo "2542"]
[Annotator "ChessBase"]
[PlyCount "112"]
[EventDate "2022.09.16"]
[EventType "swiss"]
[EventCountry "SLO"]
[SourceTitle "playchess.com"]
[Source "ChessBase"]
[SourceQuality "1"]
[TimeControl "5400+30"]

1. d4 {[%emt 0:00:03]} Nf6 {[%emt 0:05:24]} 2. c4 {[%emt 0:00:08]} e6 {[%emt 0:00:23]} 3. Nf3 {[%emt 0:00:10]} b6 {[%emt 0:00:05]} 4. g3 {[%emt 0:00:09]} Ba6 {[%emt 0:00:06]} 5. b3 {[%emt 0:00:05]} Bb4+ {[%emt 0:00:20]} 6. Bd2 {[%emt 0:00:05]} Be7 {[%emt 0:00:04]} 7. Bg2 {[%emt 0:00:06]} d5 {[%emt 0:00:03]} 8. cxd5 {[%emt 0:01:19]} exd5 {[%emt 0:00:06]} 9. O-O {[%emt 0:00:05]} O-O {[%emt 0:00:06]} 10. Nc3 {[%emt 0:00:28]} Re8 {[%emt 0:00:28]} 11. Ne5 {[%emt 0:02:07]} Bb7 {[%emt 0:00:51]} 12. Rc1 {[%emt 0:00:29]} Nbd7 {[%emt 0:00:45]} 13. Rc2 {[%emt 0:00:25]} c6 {[%emt 0:10:29]} 14. Bc1 {[%emt 0:17:27]} Bf8 {[%emt 0:16:46]} 15. Nd3 {[%emt 0:11:04]} Ne4 {[%emt 0:06:54]} 16. Bb2 {[%emt 0:00:40]} Bd6 {[%emt 0:02:14]} 17. Qa1 {[%emt 0:03:47]} Qe7 {[%emt 0:00:19]} 18. Nd1 {[%emt 0:06:12]} Nef6 {[%emt 0:04:37]} 19. Ne3 {[%emt 0:02:35]} g6 {[%emt 0:00:46]} 20. Bf3 {[%emt 0:00:11]} h5 {[%emt 0:01:01]} 21. Ng2 {[%emt 0:01:57]} Qe6 {[%emt 0:08:37]} 22. Qc1 {[%emt 0:11:59]} Rac8 {[%emt 0:04:01]} 23. h4 {[%emt 0:02:06]} Ne4 {[%emt 0:05:48]} 24. Ngf4 {[%emt 0:01:39]} Qe7 {[%emt 0:00:40]} 25. Rd1 {[%emt 0:01:10]} Nef6 {[%emt 0:08:36]} 26. Bg2 {[%emt 0:00:59]} Ng4 {[%emt 0:02:14]} 27. Qd2 {[%emt 0:02:02]} Ndf6 {[%emt 0:02:17]} 28. Qe1 {[%emt 0:00:38]} Rc7 {[%emt 0:02:11]} 29. Rdc1 {[%emt 0:01:04]} a5 {[%emt 0:00:06]} 30. a4 {[%emt 0:05:00]} Qd8 {[%emt 0:02:08]} 31. Rb1 {[%emt 0:02:16]} Ree7 {[%emt 0:01:07]} 32. Qc1 {[%emt 0:00:43]} Qe8 {[%emt 0:01:28]} 33. Ba3 {[%emt 0:00:34]} Bxa3 {[%emt 0:00:11]} 34. Qxa3 {[%emt 0:00:05]} Ba6 {[%emt 0:00:34]} 35. b4 {[%emt 0:02:21]} axb4 {[%emt 0:03:09]} 36. Rxb4 {[%emt 0:00:31]} Bxd3 {[%emt 0:01:18]} 37. Qxd3 {[%emt 0:00:05]} c5 {[%emt 0:01:43]} 38. Rxb6 {[%emt 0:02:53]} Qxa4 {[%emt 0:02:04]} 39. Rxc5 {[%emt 0:01:36]} Rxc5 {[%emt 0:00:58]} 40. dxc5 {[%emt 0:00:02]} Qa5 {[%emt 0:00:06]} 41. Rb1 {[%emt 0:06:25]} Qxc5 {[%emt 0:00:04]} 42. Qf3 {[%emt 0:00:48]} Ne4 {[%emt 0:02:11]} 43. Nd3 {[%emt 0:00:14]} Qa7 {[%emt 0:00:44]} 44. Qf4 {[%emt 0:00:59]} Kg7 {[%emt 0:00:34]} 45. Qb8 {[%emt 0:01:33]} Qxb8 {[%emt 0:01:26]} 46. Rxb8 {[%emt 0:00:06]} Nc3 {[%emt 0:00:02]} 47. e3 {[%emt 0:01:52]} d4 {[%emt 0:00:08]} 48. exd4 {[%emt 0:00:23]} Ne2+ {[%emt 0:00:04]} 49. Kh1 {[%emt 0:00:38]} Nxd4 {[%emt 0:00:08]} 50. Bf1 {[%emt 0:00:21]} Rd7 {[%emt 0:00:47]} 51. Kg2 {[%emt 0:00:21]} Nc2 {[%emt 0:00:18]} 52. Re8 {[%emt 0:00:14]} Nd4 {[%emt 0:00:54]} 53. Rb8 {[%emt 0:00:48]} Rc7 {[%emt 0:00:11]} 54. Rb4 {[%emt 0:00:19]} Nc2 {[%emt 0:00:25]} 55. Re4 {[%emt 0:00:08]} Rc3 {[%emt 0:00:56]} 56. Nf4 {[%emt 0:01:46]} Nf6 {[%emt 0:00:13]} 1/2-1/2

[Event "26th Hit Open-A 2022"]
[Site "Nova Gorica"]
[Date "2022.09.18"]
[Round "4.2"]
[White "Seo, Jung Min"]
[Black "Ghazarian, Kirk"]
[Result "1/2-1/2"]
[ECO "C00"]
[WhiteElo "2516"]
[BlackElo "2440"]
[Annotator "ChessBase"]
[PlyCount "82"]
[EventDate "2022.09.16"]
[EventType "swiss"]
[EventCountry "SLO"]
[SourceTitle "playchess.com"]
[Source "ChessBase"]
[SourceQuality "1"]
[TimeControl "5400+30"]

1. e4 {[%emt 0:00:02]} e5 {[%emt 0:04:00]} 2. Nf3 {[%emt 0:00:04]} Nc6 {[%emt 0:00:15]} 3. Bb5 {[%emt 0:00:41]} Nf6 {[%emt 0:00:58]} 4. d3 {[%emt 0:11:25]} Bc5 {[%emt 0:00:20]} 5. c3 {[%emt 0:02:59]} d5 {[%emt 0:02:38]} 6. Nbd2 {[%emt 0:09:05]} O-O {[%emt 0:09:57]} 7. O-O {[%emt 0:00:19]} dxe4 {[%emt 0:00:34]} 8. dxe4 {[%emt 0:00:53]} Qe7 {[%emt 0:01:47]} 9. Qe2 {[%emt 0:02:35]} a5 {[%emt 0:05:45]} 10. a4 {[%emt 0:02:39]} Nb8 {[%emt 0:03:54]} 11. Bd3 {[%emt 0:01:47]} Nbd7 {[%emt 0:13:05]} 12. Nc4 {[%emt 0:02:28]} h6 {[%emt 0:01:22]} 13. Bd2 {[%emt 0:04:47]} Ne8 {[%emt 0:05:48]} 14. Ne3 {[%emt 0:13:49]} Ndf6 {[%emt 0:04:48]} 15. Nd5 {[%emt 0:06:49]} Nxd5 {[%emt 0:02:31]} 16. exd5 {[%emt 0:00:03]} Nf6 {[%emt 0:06:52]} 17. Qxe5 {[%emt 0:06:11]} Qxe5 {[%emt 0:00:51]} 18. Nxe5 {[%emt 0:00:03]} Nxd5 {[%emt 0:00:51]} 19. Be4 {[%emt 0:05:21]} Nf6 {[%emt 0:01:03]} 20. Bf3 {[%emt 0:00:37]} c6 {[%emt 0:02:32]} 21. Rfe1 {[%emt 0:01:41]} Be6 {[%emt 0:00:45]} 22. Nd3 {[%emt 0:05:57]} Bb6 {[%emt 0:05:21]} 23. Be3 {[%emt 0:00:27]} Bxe3 {[%emt 0:00:47]} 24. Rxe3 {[%emt 0:00:25]} Nd7 {[%emt 0:01:29]} 25. h3 {[%emt 0:01:16]} Rfd8 {[%emt 0:05:07]} 26. Nf4 {[%emt 0:02:18]} Nf8 {[%emt 0:03:14]} 27. Nd3 {[%emt 0:01:09]} Bd5 {[%emt 0:01:13]} 28. Nc5 {[%emt 0:03:25]} Bxf3 {[%emt 0:00:09]} 29. Rxf3 {[%emt 0:00:04]} b6 {[%emt 0:01:57]} 30. Nd3 {[%emt 0:00:07]} Ng6 {[%emt 0:00:51]} 31. Re3 {[%emt 0:01:35]} Rd6 {[%emt 0:00:49]} 32. Rae1 {[%emt 0:00:43]} f6 {[%emt 0:03:47]} 33. Kf1 {[%emt 0:01:09]} Rad8 {[%emt 0:01:32]} 34. Re8+ {[%emt 0:00:11]} Rxe8 {[%emt 0:00:46]} 35. Rxe8+ {[%emt 0:00:03]} Kf7 {[%emt 0:00:02]} 36. Re3 {[%emt 0:00:06]} Ne7 {[%emt 0:00:41]} 37. Ke2 {[%emt 0:00:28]} Nd5 {[%emt 0:00:23]} 38. Re4 {[%emt 0:00:29]} Re6 {[%emt 0:01:09]} 39. Kf3 {[%emt 0:00:27]} Rd6 {[%emt 0:00:27]} 40. Ke2 {[%emt 0:00:06]} Re6 {[%emt 0:00:06]} 41. Kf3 {[%emt 0:00:04]} Rd6 {[%emt 0:00:04]} 1/2-1/2

[Event "26th Hit Open-A 2022"]
[Site "Nova Gorica"]
[Date "2022.09.18"]
[Round "4.3"]
[White "Stefansson, Vignir Vatnar"]
[Black "Wadsworth, Matthew J"]
[Result "1/2-1/2"]
[ECO "B06"]
[WhiteElo "2452"]
[BlackElo "2423"]
[Annotator "ChessBase"]
[PlyCount "186"]
[EventDate "2022.09.16"]
[EventType "swiss"]
[EventCountry "SLO"]
[SourceTitle "playchess.com"]
[Source "ChessBase"]
[SourceQuality "1"]
[TimeControl "5400+30"]

1. e4 {[%emt 0:00:20]} c5 {[%emt 0:00:27]} 2. c3 {[%emt 0:00:35]} d5 {[%emt 0:01:05]} 3. exd5 {[%emt 0:00:08]} Qxd5 {[%emt 0:00:07]} 4. d4 {[%emt 0:00:06]} g6 {[%emt 0:01:27]} 5. Nf3 {[%emt 0:03:02]} Bg7 {[%emt 0:00:45]} 6. Nbd2 {[%emt 0:05:28]} cxd4 {[%emt 0:06:36]} 7. Bc4 {[%emt 0:01:27]} Qd8 {[%emt 0:08:08]} 8. Nxd4 {[%emt 0:00:46]} Nf6 {[%emt 0:00:46]} 9. O-O {[%emt 0:00:26]} O-O {[%emt 0:00:29]} 10. N2f3 {[%emt 0:01:16]} Qc7 {[%emt 0:14:14]} 11. Qe2 {[%emt 0:00:28]} a6 {[%emt 0:01:25]} 12. Re1 {[%emt 0:01:25]} Nbd7 {[%emt 0:07:16]} 13. Bb3 {[%emt 0:05:41]} e6 {[%emt 0:02:05]} 14. Bxe6 {[%emt 0:14:27]} fxe6 {[%emt 0:00:06]} 15. Nxe6 {[%emt 0:00:05]} Qb6 {[%emt 0:04:24]} 16. Nxg7 {[%emt 0:26:28]} Kxg7 {[%emt 0:01:04]} 17. Qe7+ {[%emt 0:00:09]} Rf7 {[%emt 0:01:04]} 18. Bh6+ {[%emt 0:00:09]} Kg8 {[%emt 0:00:14]} 19. Qxf7+ {[%emt 0:00:28]} Kxf7 {[%emt 0:00:27]} 20. Ng5+ {[%emt 0:00:05]} Kg8 {[%emt 0:00:38]} 21. Re7 {[%emt 0:00:06]} Ne5 {[%emt 0:34:48]} 22. Re1 {[%emt 0:00:59]} Qxf2+ {[%emt 0:01:57]} 23. Kxf2 {[%emt 0:00:08]} Neg4+ {[%emt 0:00:03]} 24. Kg1 {[%emt 0:01:09]} Nxh6 {[%emt 0:00:04]} 25. Rc7 {[%emt 0:01:49]} Bd7 {[%emt 0:06:27]} 26. Rf1 {[%emt 0:03:10]} Bf5 {[%emt 0:01:54]} 27. h3 {[%emt 0:00:38]} Ne4 {[%emt 0:03:42]} 28. Nxh7 {[%emt 0:01:16]} g5 {[%emt 0:00:08]} 29. Nxg5 {[%emt 0:03:52]} Nxg5 {[%emt 0:00:02]} 30. Rxb7 {[%emt 0:00:05]} Rd8 {[%emt 0:01:26]} 31. Rb6 {[%emt 0:00:16]} Ngf7 {[%emt 0:00:28]} 32. g4 {[%emt 0:04:06]} Bd3 {[%emt 0:00:05]} 33. Rf4 {[%emt 0:00:05]} Re8 {[%emt 0:01:32]} 34. Kf2 {[%emt 0:11:43]} Re2+ {[%emt 0:00:13]} 35. Kg3 {[%emt 0:00:01]} Kg7 {[%emt 0:00:37]} 36. Rb7 {[%emt 0:00:20]} Be4 {[%emt 0:00:42]} 37. Re7 {[%emt 0:00:37]} Rg2+ {[%emt 0:00:01]} 38. Kh4 {[%emt 0:00:04]} Bb1 {[%emt 0:00:55]} 39. b4 {[%emt 0:01:08]} Bxa2 {[%emt 0:00:55]} 40. c4 {[%emt 0:00:18]} Bb1 {[%emt 0:00:53]} 41. c5 {[%emt 0:00:05]} Rc2 {[%emt 0:00:22]} 42. Re6 {[%emt 0:01:50]} Nh8 {[%emt 0:00:39]} 43. Kg3 {[%emt 0:05:20]} Ng6 {[%emt 0:00:33]} 44. Rf3 {[%emt 0:00:04]} Rc4 {[%emt 0:00:25]} 45. Rxa6 {[%emt 0:01:36]} Nf7 {[%emt 0:00:35]} 46. Raa3 {[%emt 0:01:26]} Rxb4 {[%emt 0:00:28]} 47. Rfc3 {[%emt 0:00:11]} Ng5 {[%emt 0:00:34]} 48. Rcb3 {[%emt 0:01:28]} Ne4+ {[%emt 0:00:30]} 49. Kh2 {[%emt 0:00:04]} Rc4 {[%emt 0:00:33]} 50. Rxb1 {[%emt 0:00:46]} Rc2+ {[%emt 0:00:06]} 51. Kg1 {[%emt 0:00:47]} Nf4 {[%emt 0:00:26]} 52. c6 {[%emt 0:01:30]} Rg2+ {[%emt 0:00:24]} 53. Kf1 {[%emt 0:00:01]} Nd2+ {[%emt 0:00:54]} 54. Ke1 {[%emt 0:00:01]} Nxb1 {[%emt 0:00:06]} 55. Rf3 {[%emt 0:00:30]} Ne6 {[%emt 0:00:38]} 56. Rb3 {[%emt 0:00:47]} Kf6 {[%emt 0:00:27]} 57. c7 {[%emt 0:01:26]} Nxc7 {[%emt 0:00:37]} 58. Kf1 {[%emt 0:02:30]} Nd2+ {[%emt 0:00:25]} 59. Kxg2 {[%emt 0:00:06]} Nxb3 {[%emt 0:00:03]} 60. h4 {[%emt 0:00:21]} Nd5 {[%emt 0:00:59]} 61. g5+ {[%emt 0:00:06]} Kf5 {[%emt 0:00:34]} 62. h5 {[%emt 0:00:43]} Nf4+ {[%emt 0:00:23]} 63. Kf3 {[%emt 0:00:04]} Nxh5 {[%emt 0:00:13]} 64. g6 {[%emt 0:00:03]} Ng7 {[%emt 0:00:07]} 65. Ke3 {[%emt 0:00:04]} Ke5 {[%emt 0:00:33]} 66. Kd3 {[%emt 0:00:05]} Nc5+ {[%emt 0:00:21]} 67. Kc4 {[%emt 0:00:04]} Nce6 {[%emt 0:00:16]} 68. Kd3 {[%emt 0:00:05]} Kd5 {[%emt 0:00:12]} 69. Ke3 {[%emt 0:00:05]} Nc5 {[%emt 0:00:13]} 70. Kf4 {[%emt 0:00:13]} Kd4 {[%emt 0:00:20]} 71. Kf3 {[%emt 0:00:05]} Nd3 {[%emt 0:00:52]} 72. Ke2 {[%emt 0:00:06]} Ne5 {[%emt 0:00:39]} 73. Kd2 {[%emt 0:00:05]} Nf3+ {[%emt 0:00:48]} 74. Ke2 {[%emt 0:00:07]} Ke4 {[%emt 0:00:11]} 75. Kf2 {[%emt 0:00:06]} Nd4 {[%emt 0:00:14]} 76. Kg3 {[%emt 0:00:01]} Ke3 {[%emt 0:00:24]} 77. Kg4 {[%emt 0:00:08]} Nf3 {[%emt 0:00:32]} 78. Kg3 {[%emt 0:00:04]} Ne5 {[%emt 0:00:09]} 79. Kg2 {[%emt 0:00:05]} Nd7 {[%emt 0:01:29]} 80. Kf1 {[%emt 0:00:16]} Nc5 {[%emt 0:00:35]} 81. Ke1 {[%emt 0:00:35]} Ne4 {[%emt 0:01:03]} 82. Kd1 {[%emt 0:00:04]} Kd3 {[%emt 0:00:31]} 83. Kc1 {[%emt 0:00:04]} Kc3 {[%emt 0:00:53]} 84. Kb1 {[%emt 0:00:03]} Nd2+ {[%emt 0:00:32]} 85. Ka2 {[%emt 0:00:23]} Nc4 {[%emt 0:00:22]} 86. Kb1 {[%emt 0:00:03]} Kd2 {[%emt 0:00:34]} 87. Ka1 {[%emt 0:00:01]} Kc1 {[%emt 0:00:40]} 88. Ka2 {[%emt 0:00:03]} Kc2 {[%emt 0:00:07]} 89. Ka1 {[%emt 0:00:02]} Na3 {[%emt 0:01:00]} 90. Ka2 {[%emt 0:00:04]} Nb5 {[%emt 0:00:20]} 91. Ka1 {[%emt 0:00:03]} Na3 {[%emt 0:00:40]} 92. Ka2 {[%emt 0:00:04]} Nb1 {[%emt 0:00:08]} 93. Ka1 {[%emt 0:00:02]} Nc3 {[%emt 0:00:10]} 1/2-1/2

[Event "26th Hit Open-A 2022"]
[Site "Nova Gorica"]
[Date "2022.09.18"]
[Round "4.4"]
[White "Kaasen, Tor Fredrik"]
[Black "Brilej, Jaka"]
[Result "1/2-1/2"]
[ECO "B10"]
[WhiteElo "2442"]
[BlackElo "2329"]
[Annotator "ChessBase"]
[PlyCount "137"]
[EventDate "2022.09.16"]
[EventType "swiss"]
[EventCountry "SLO"]
[SourceTitle "playchess.com"]
[Source "ChessBase"]
[SourceQuality "1"]
[TimeControl "5400+30"]

1. e4 {[%emt 0:02:45]} c6 {[%emt 0:00:04]} 2. Nf3 {[%emt 0:00:28]} d5 {[%emt 0:00:10]} 3. d3 {[%emt 0:00:20]} dxe4 {[%emt 0:00:52]} 4. dxe4 {[%emt 0:00:11]} Qxd1+ {[%emt 0:00:07]} 5. Kxd1 {[%emt 0:00:07]} Nf6 {[%emt 0:00:06]} 6. Nfd2 {[%emt 0:00:43]} h5 {[%emt 0:01:46]} 7. h4 {[%emt 0:02:06]} g6 {[%emt 0:02:54]} 8. f3 {[%emt 0:02:05]} Bh6 {[%emt 0:00:24]} 9. a4 {[%emt 0:02:54]} Be6 {[%emt 0:04:21]} 10. c3 {[%emt 0:01:53]} Nbd7 {[%emt 0:01:17]} 11. Kc2 {[%emt 0:00:53]} O-O-O {[%emt 0:01:03]} 12. Bc4 {[%emt 0:09:45]} Nc5 {[%emt 0:08:01]} 13. Bxe6+ {[%emt 0:12:31]} Nxe6 {[%emt 0:00:35]} 14. Nc4 {[%emt 0:05:20]} Bxc1 {[%emt 0:01:57]} 15. Rxc1 {[%emt 0:00:14]} Nf4 {[%emt 0:08:08]} 16. Rg1 {[%emt 0:01:12]} Nd7 {[%emt 0:06:30]} 17. b4 {[%emt 0:03:40]} Nd3 {[%emt 0:07:45]} 18. Nbd2 {[%emt 0:05:12]} N3e5 {[%emt 0:06:03]} 19. Ne3 {[%emt 0:03:35]} Nf6 {[%emt 0:00:38]} 20. a5 {[%emt 0:01:20]} Rd7 {[%emt 0:05:44]} 21. Ndc4 {[%emt 0:10:40]} Nxc4 {[%emt 0:00:46]} 22. Nxc4 {[%emt 0:00:06]} Rhd8 {[%emt 0:00:41]} 23. a6 {[%emt 0:01:53]} b6 {[%emt 0:07:39]} 24. Ne5 {[%emt 0:01:17]} Rd2+ {[%emt 0:00:08]} 25. Kb3 {[%emt 0:00:38]} Kc7 {[%emt 0:10:03]} 26. Nxf7 {[%emt 0:01:19]} Rf8 {[%emt 0:01:01]} 27. Ng5 {[%emt 0:01:48]} Re8 {[%emt 0:00:31]} 28. Ne6+ {[%emt 0:00:49]} Kd6 {[%emt 0:00:26]} 29. Ng5 {[%emt 0:04:43]} e5 {[%emt 0:00:47]} 30. Rad1 {[%emt 0:01:48]} Rxd1 {[%emt 0:00:07]} 31. Rxd1+ {[%emt 0:00:04]} Ke7 {[%emt 0:00:05]} 32. c4 {[%emt 0:02:11]} Rc8 {[%emt 0:00:32]} 33. g3 {[%emt 0:02:23]} Nd7 {[%emt 0:02:07]} 34. Kc3 {[%emt 0:01:07]} Rf8 {[%emt 0:01:07]} 35. Rf1 {[%emt 0:02:49]} Nf6 {[%emt 0:02:48]} 36. Rb1 {[%emt 0:05:31]} Nd7 {[%emt 0:00:35]} 37. Kd3 {[%emt 0:00:39]} Nb8 {[%emt 0:00:45]} 38. Ra1 {[%emt 0:00:53]} Rd8+ {[%emt 0:00:31]} 39. Kc3 {[%emt 0:04:02]} Rf8 {[%emt 0:00:57]} 40. Rf1 {[%emt 0:00:25]} Nd7 {[%emt 0:02:28]} 41. f4 {[%emt 0:00:17]} Nf6 {[%emt 0:00:47]} 42. c5 {[%emt 0:02:04]} bxc5 {[%emt 0:03:44]} 43. bxc5 {[%emt 0:00:07]} Nd7 {[%emt 0:00:32]} 44. Kc4 {[%emt 0:00:21]} Rb8 {[%emt 0:01:37]} 45. fxe5 {[%emt 0:02:19]} Nxe5+ {[%emt 0:00:08]} 46. Kd4 {[%emt 0:00:08]} Nd7 {[%emt 0:00:05]} 47. Rf7+ {[%emt 0:00:33]} Ke8 {[%emt 0:00:07]} 48. Rg7 {[%emt 0:00:58]} Rb4+ {[%emt 0:00:24]} 49. Kc3 {[%emt 0:00:57]} Ra4 {[%emt 0:00:36]} 50. Rxg6 {[%emt 0:01:20]} Rxa6 {[%emt 0:00:07]} 51. Kb4 {[%emt 0:00:18]} Ra1 {[%emt 0:01:40]} 52. Rxc6 {[%emt 0:00:37]} a5+ {[%emt 0:00:22]} 53. Kb3 {[%emt 0:00:56]} Rc1 {[%emt 0:00:54]} 54. Ne6 {[%emt 0:00:47]} Ke7 {[%emt 0:00:13]} 55. Kb2 {[%emt 0:00:39]} Rc4 {[%emt 0:00:37]} 56. Nf4 {[%emt 0:01:12]} Nxc5 {[%emt 0:02:24]} 57. Ng6+ {[%emt 0:02:16]} Ke8 {[%emt 0:02:13]} 58. Rc8+ {[%emt 0:00:10]} Kd7 {[%emt 0:00:05]} 59. Rh8 {[%emt 0:00:11]} Rb4+ {[%emt 0:00:32]} 60. Kc2 {[%emt 0:00:37]} Nxe4 {[%emt 0:00:24]} 61. Rxh5 {[%emt 0:00:47]} Nxg3 {[%emt 0:00:16]} 62. Rxa5 {[%emt 0:00:14]} Ke6 {[%emt 0:03:12]} 63. Rg5 {[%emt 0:00:43]} Nf5 {[%emt 0:02:15]} 64. Nf8+ {[%emt 0:00:10]} Kf6 {[%emt 0:00:17]} 65. Nd7+ {[%emt 0:00:21]} Ke6 {[%emt 0:00:21]} 66. Nc5+ {[%emt 0:01:11]} Kf6 {[%emt 0:00:09]} 67. Nd7+ {[%emt 0:00:23]} Ke6 {[%emt 0:00:06]} 68. Nc5+ {[%emt 0:00:29]} Kf6 {[%emt 0:00:06]} 69. Nd7+ {[%emt 0:00:06]} 1/2-1/2

[Event "26th Hit Open-A 2022"]
[Site "Nova Gorica"]
[Date "2022.09.18"]
[Round "4.5"]
[White "Sharan, Rao"]
[Black "Lodici, Lorenzo"]
[Result "1-0"]
[ECO "A30"]
[WhiteElo "2312"]
[BlackElo "2559"]
[Annotator "ChessBase"]
[PlyCount "83"]
[EventDate "2022.09.16"]
[EventType "swiss"]
[EventCountry "SLO"]
[SourceTitle "playchess.com"]
[Source "ChessBase"]
[SourceQuality "1"]
[TimeControl "5400+30"]

1. Nf3 {[%emt 0:00:04]} c5 {[%emt 0:00:45]} 2. b3 {[%emt 0:00:25]} d6 {[%emt 0:00:05]} 3. d4 {[%emt 0:00:25]} cxd4 {[%emt 0:00:19]} 4. Nxd4 {[%emt 0:00:05]} b6 {[%emt 0:00:52]} 5. e3 {[%emt 0:01:57]} Bb7 {[%emt 0:00:06]} 6. Bb2 {[%emt 0:05:21]} Nd7 {[%emt 0:00:47]} 7. Be2 {[%emt 0:03:00]} Ngf6 {[%emt 0:11:02]} 8. O-O {[%emt 0:04:20]} e6 {[%emt 0:03:04]} 9. c4 {[%emt 0:00:53]} Be7 {[%emt 0:01:37]} 10. Nc3 {[%emt 0:02:58]} O-O {[%emt 0:02:07]} 11. Bf3 {[%emt 0:01:16]} Bxf3 {[%emt 0:01:41]} 12. Qxf3 {[%emt 0:02:17]} Ne5 {[%emt 0:00:12]} 13. Qe2 {[%emt 0:02:24]} Qc7 {[%emt 0:02:22]} 14. Rad1 {[%emt 0:04:34]} Rfe8 {[%emt 0:02:54]} 15. f4 {[%emt 0:06:08]} Ned7 {[%emt 0:01:30]} 16. Qf3 {[%emt 0:14:02]} a6 {[%emt 0:05:41]} 17. g4 {[%emt 0:02:48]} g6 {[%emt 0:02:37]} 18. Nc6 {[%emt 0:07:11]} Bf8 {[%emt 0:02:38]} 19. f5 {[%emt 0:01:36]} gxf5 {[%emt 0:16:42]} 20. gxf5 {[%emt 0:00:41]} e5 {[%emt 0:00:05]} 21. Nd5 {[%emt 0:12:04]} Qc8 {[%emt 0:12:32]} 22. Kh1 {[%emt 0:01:23]} Kh8 {[%emt 0:04:03]} 23. Nxf6 {[%emt 0:00:50]} Nxf6 {[%emt 0:00:03]} 24. Rg1 {[%emt 0:01:38]} Qc7 {[%emt 0:03:14]} 25. Rg2 {[%emt 0:00:40]} a5 {[%emt 0:11:32]} 26. Rdg1 {[%emt 0:05:58]} Rac8 {[%emt 0:02:14]} 27. Qg3 {[%emt 0:01:22]} Bh6 {[%emt 0:00:07]} 28. Qh4 {[%emt 0:03:20]} Ng8 {[%emt 0:00:41]} 29. Nd4 {[%emt 0:01:39]} exd4 {[%emt 0:11:33]} 30. Bxd4+ {[%emt 0:01:24]} Re5 {[%emt 0:00:02]} 31. Bxe5+ {[%emt 0:00:20]} dxe5 {[%emt 0:00:01]} 32. Rxg8+ {[%emt 0:08:06]} Rxg8 {[%emt 0:00:01]} 33. Rxg8+ {[%emt 0:00:01]} Kxg8 {[%emt 0:00:09]} 34. Qxh6 {[%emt 0:00:02]} Qd7 {[%emt 0:02:28]} 35. f6 {[%emt 0:03:39]} Qg4 {[%emt 0:00:09]} 36. h4 {[%emt 0:00:17]} Qf3+ {[%emt 0:01:40]} 37. Kg1 {[%emt 0:00:01]} Qg3+ {[%emt 0:00:05]} 38. Kf1 {[%emt 0:00:04]} Qf3+ {[%emt 0:00:34]} 39. Ke1 {[%emt 0:00:01]} Qg3+ {[%emt 0:00:10]} 40. Ke2 {[%emt 0:00:26]} Qg2+ {[%emt 0:00:38]} 41. Kd3 {[%emt 0:00:11]} e4+ {[%emt 0:01:12]} 42. Kc3 {[%emt 0:01:14]} 1-0

[Event "26th Hit Open-A 2022"]
[Site "Nova Gorica"]
[Date "2022.09.18"]
[Round "4.6"]
[White "Van Dael, Siem"]
[Black "Diermair, Andreas"]
[Result "1/2-1/2"]
[ECO "C18"]
[WhiteElo "2316"]
[BlackElo "2468"]
[Annotator "ChessBase"]
[PlyCount "50"]
[EventDate "2022.09.16"]
[EventType "swiss"]
[EventCountry "SLO"]
[SourceTitle "playchess.com"]
[Source "ChessBase"]
[SourceQuality "1"]
[TimeControl "5400+30"]

1. e4 {[%emt 0:00:03]} e6 {[%emt 0:00:11]} 2. d4 {[%emt 0:00:06]} d5 {[%emt 0:00:03]} 3. Nc3 {[%emt 0:00:06]} Bb4 {[%emt 0:00:30]} 4. e5 {[%emt 0:00:06]} c5 {[%emt 0:00:23]} 5. a3 {[%emt 0:00:05]} Bxc3+ {[%emt 0:00:42]} 6. bxc3 {[%emt 0:00:07]} Qc7 {[%emt 0:00:48]} 7. Qg4 {[%emt 0:01:02]} f6 {[%emt 0:00:11]} 8. Nf3 {[%emt 0:12:41]} c4 {[%emt 0:00:12]} 9. Qg3 {[%emt 0:01:24]} Qf7 {[%emt 0:01:23]} 10. Be2 {[%emt 0:12:33]} Nc6 {[%emt 0:00:26]} 11. O-O {[%emt 0:00:48]} Nge7 {[%emt 0:06:41]} 12. exf6 {[%emt 0:01:01]} gxf6 {[%emt 0:10:05]} 13. Nh4 {[%emt 0:00:27]} Rg8 {[%emt 0:02:46]} 14. Qd6 {[%emt 0:01:25]} Bd7 {[%emt 0:02:57]} 15. Bf4 {[%emt 0:05:45]} Rd8 {[%emt 0:16:22]} 16. Qc7 {[%emt 0:01:21]} Bc8 {[%emt 0:01:34]} 17. Bg3 {[%emt 0:01:03]} e5 {[%emt 0:03:13]} 18. dxe5 {[%emt 0:07:21]} fxe5 {[%emt 0:00:31]} 19. Nf3 {[%emt 0:08:42]} Rxg3 {[%emt 0:14:53]} 20. hxg3 {[%emt 0:05:54]} Rd7 {[%emt 0:06:42]} 21. Nxe5 {[%emt 0:01:49]} Rxc7 {[%emt 0:00:07]} 22. Nxf7 {[%emt 0:00:04]} Kxf7 {[%emt 0:00:04]} 23. g4 {[%emt 0:00:10]} Ne5 {[%emt 0:02:22]} 24. f3 {[%emt 0:00:09]} N7g6 {[%emt 0:03:06]} 25. g3 {[%emt 0:02:11]} Rc5 {[%emt 0:02:15]} 1/2-1/2